bitfinex-derivatives/quotes_BTCF0:USTF0_20250811
["timestamp","ask_amount","ask_price","bid_price","bid_amount"]
[1754926095025,0.0001,120200.0,120190.0,0.0832115]
[1754926095224,0.8014,120200.0,120190.0,1.16603143]
[1754926097033,0.8014,120200.0,120190.0,1.26593143]
[1754926097428,0.8856045,120200.0,120190.0,1.22998143]
[1754926097729,0.8054,120200.0,120190.0,1.23834733]
[1754926098039,0.8044,120200.0,120190.0,1.23834733]
[1754926098336,0.8886045,120200.0,120190.0,1.23834733]
[1754926098532,0.8054,120200.0,120190.0,1.23834733]
[1754926098835,0.8886045,120200.0,120190.0,1.23834733]
[1754926100331,0.8886045,120200.0,120190.0,0.8574173]
[1754926100730,0.8886045,120200.0,120190.0,1.23834733]
[1754926101035,1.27074453,120200.0,120190.0,0.0999]
[1754926101234,0.83054453,120200.0,120190.0,0.0999]
[1754926101429,1.6398781,120200.0,120190.0,0.0999]
[1754926101730,1.21992813,120200.0,120190.0,0.0999]
[1754926101938,2.02076813,120200.0,120190.0,0.0989]
[1754926102430,0.8389981,120200.0,120190.0,0.0989]
[1754926102628,1.6397581,120200.0,120190.0,0.0989]
[1754926103023,1.25882807,120200.0,120190.0,0.0989]
[1754926103233,1.6397581,120200.0,120190.0,0.0989]
[1754926103532,1.6397181,120200.0,120190.0,0.0989]
[1754926103733,0.8655181,120200.0,120190.0,0.0989]
[1754926104030,1.6847081,120200.0,120190.0,0.0989]
[1754926105537,1.6847081,120200.0,120190.0,0.07238]
[1754926106438,1.30377807,120200.0,120190.0,0.07238]
[1754926106637,1.6845881,120200.0,120190.0,0.07238]
[1754926108340,1.6843881,120200.0,120190.0,0.09917]
[1754926109034,1.30345807,120200.0,120190.0,0.09917]
[1754926109236,1.6843881,120200.0,120190.0,0.09917]
[1754926110231,1.30345807,120200.0,120190.0,0.09917]
[1754926110431,1.6843881,120200.0,120190.0,0.09917]
[1754926113633,1.6841081,120200.0,120190.0,0.09917]
[1754926113940,1.6841081,120200.0,120190.0,0.1823815]
[1754926114340,1.6841081,120200.0,120190.0,0.09917]
[1754926114635,0.11577807,120200.0,120190.0,0.2944515]
[1754926114939,0.91565807,120200.0,120190.0,0.2944515]
[1754926115339,0.9072045,120200.0,120190.0,0.2944515]
[1754926116042,0.9072045,120200.0,120190.0,0.6552515]
[1754926116340,1.28813453,120200.0,120190.0,0.2944515]
[1754926116648,1.64881453,120200.0,120190.0,0.1823815]
[1754926116840,0.84905453,120200.0,120190.0,0.1823815]
[1754926117142,1.65719382,120200.0,120190.0,0.1823815]
[1754926119341,1.65719382,120200.0,120190.0,0.09917]
[1754926119735,1.65719382,120200.0,120190.0,0.1823815]
[1754926120841,1.65719382,120200.0,120190.0,0.09917]
[1754926121032,0.85747382,120200.0,120190.0,0.09917]
[1754926121236,1.65703382,120200.0,120190.0,0.09917]
[1754926121644,1.65703382,120200.0,120190.0,0.1823815]
[1754926121940,1.65703382,120200.0,120190.0,0.09917]
[1754926122136,2.22253978,120200.0,120190.0,0.07238]
[1754926122334,2.22398802,120200.0,120190.0,0.07238]
[1754926122740,1.42466802,120200.0,120190.0,0.07238]
[1754926122942,2.22394802,120200.0,120190.0,0.07238]
[1754926123444,1.84297799,120200.0,120190.0,0.07238]
[1754926123644,1.83997799,120200.0,120190.0,0.10117]
[1754926123840,1.83997799,120200.0,120190.0,0.10217]
[1754926124450,0.49340796,120200.0,120190.0,0.10217]
[1754926124645,1.67357799,120200.0,120190.0,0.10017]
[1754926125542,0.87433799,120200.0,120190.0,0.10017]
[1754926125746,1.67349799,120200.0,120190.0,0.10017]
[1754926127048,0.87433799,120200.0,120190.0,0.10017]
[1754926127246,1.67341799,120200.0,120190.0,0.10017]
[1754926128643,2.05426802,120200.0,120190.0,0.07338]
[1754926132453,3.20486802,120200.0,120190.0,0.07338]
[1754926132845,2.40586802,120200.0,120190.0,0.07338]
[1754926133045,3.20442802,120200.0,120190.0,0.07338]
[1754926134147,3.20442802,120200.0,120190.0,0.10017]
[1754926134349,2.02493799,120200.0,120190.0,0.10017]
[1754926134652,2.82341799,120200.0,120190.0,0.10017]
[1754926136554,2.82341799,120200.0,120190.0,0.07338]
[1754926136755,2.82341799,120200.0,120190.0,0.10017]
[1754926137655,2.02493799,120200.0,120190.0,0.10017]
[1754926137953,3.20418802,120200.0,120190.0,0.10017]
[1754926138255,2.82325799,120200.0,120190.0,0.10017]
[1754926139358,3.20418802,120200.0,120190.0,0.07338]
[1754926139860,3.20394802,120200.0,120190.0,0.07338]
[1754926141357,3.20394802,120200.0,120190.0,0.10012]
[1754926143374,2.40586802,120200.0,120190.0,0.10012]
[1754926143572,3.20370802,120200.0,120190.0,0.10012]
[1754926143872,3.20366802,120200.0,120190.0,0.10012]
[1754926150274,2.40586802,120200.0,120190.0,0.10012]
[1754926150472,3.20322802,120200.0,120190.0,0.10012]
[1754926150664,2.40586802,120200.0,120190.0,0.10012]
[1754926150972,3.20314802,120200.0,120190.0,0.10012]
[1754926151564,2.82221799,120200.0,120190.0,0.10012]
[1754926156677,3.20314802,120200.0,120190.0,0.10012]
[1754926157975,2.40586802,120200.0,120190.0,0.10012]
[1754926158171,2.40586802,120200.0,120190.0,0.07338]
[1754926158172,3.20266802,120200.0,120190.0,0.07338]
[1754926158576,3.20258802,120200.0,120190.0,0.07338]
[1754926159278,2.40586802,120200.0,120190.0,0.10012]
[1754926159478,3.20254802,120200.0,120190.0,0.10012]
[1754926160582,2.82161799,120200.0,120190.0,0.07338]
[1754926160982,3.20254802,120200.0,120190.0,0.07338]
[1754926161281,3.20254802,120200.0,120190.0,0.10012]
[1754926162178,2.40586802,120200.0,120190.0,0.10012]
[1754926162384,2.82129799,120200.0,120190.0,0.15501]
[1754926162582,2.82129799,120200.0,120190.0,0.21046]
[1754926163783,2.44036796,120200.0,120190.0,0.21046]
[1754926163982,2.82129799,120200.0,120190.0,0.21046]
[1754926164684,1.62288796,120200.0,120190.0,0.2936718]
[1754926164880,2.41904796,120200.0,120190.0,0.2936718]
[1754926165079,2.00381799,120200.0,120190.0,0.21046]
[1754926165280,2.79997799,120200.0,120190.0,0.2936718]
[1754926166384,2.79989799,120200.0,120190.0,0.2936718]
[1754926166985,2.00381799,120200.0,120190.0,0.21046]
[1754926167289,2.79985799,120200.0,120190.0,0.10012]
[1754926169386,2.38474802,120200.0,120190.0,0.07338]
[1754926169580,2.38474802,120200.0,120190.0,0.10043]
[1754926169789,2.79961799,120200.0,120190.0,0.10043]
[1754926171180,2.38474802,120200.0,120190.0,0.07338]
[1754926171386,3.1825937,120200.0,120190.0,0.07338]
[1754926171587,2.3868337,120200.0,120190.0,0.07338]
[1754926171786,3.1824737,120200.0,120190.0,0.07338]
[1754926172682,3.1824737,120200.0,120190.0,0.07638]
[1754926172986,3.1824737,120200.0,120190.0,0.08238]
[1754926173389,2.3868337,120200.0,120190.0,0.08238]
[1754926173579,1.62497364,120200.0,120190.0,0.08238]
[1754926173786,2.80138367,120200.0,120190.0,0.10943]
[1754926173988,2.80134367,120200.0,120190.0,0.10943]
[1754926174490,2.80134367,120200.0,120190.0,0.14107]
[1754926174991,2.80134367,120200.0,120190.0,0.16304]
[1754926175590,2.80134367,120200.0,120190.0,0.14107]
[1754926175986,2.80134367,120200.0,120190.0,0.19431]
[1754926176194,2.80134367,120200.0,120190.0,0.21628]
[1754926176693,2.00590367,120200.0,120190.0,0.16267]
[1754926176879,3.1820737,120200.0,120190.0,0.10943]
[1754926178693,2.3868337,120200.0,120190.0,0.10943]
[1754926178994,3.1819137,120200.0,120190.0,0.08238]
[1754926179383,2.3868337,120200.0,120190.0,0.08238]
[1754926179688,0.0832187,120180.0,120170.0,0.02705]
[1754926179893,0.0832326,120160.0,120150.0,0.4976483]
[1754926180093,1.25916263,120160.0,120150.0,0.10685]
[1754926180392,1.26124831,120160.0,120150.0,0.1615]
[1754926180886,0.82704831,120160.0,120150.0,0.1615]
[1754926181198,1.62204831,120160.0,120150.0,0.05465]
[1754926181379,0.82704831,120160.0,120150.0,0.05465]
[1754926181580,1.62196831,120160.0,120150.0,0.05465]
[1754926181785,0.82704831,120160.0,120150.0,0.2447395]
[1754926181985,1.62192831,120160.0,120150.0,0.2447395]
[1754926182182,0.82704831,120160.0,120150.0,0.2447395]
[1754926182383,0.08531828,120160.0,120150.0,0.2447395]
[1754926182581,0.88019828,120160.0,120150.0,0.2447395]
[1754926182982,0.88819828,120160.0,120150.0,0.2447395]
[1754926183186,0.09331828,120160.0,120150.0,0.2447395]
[1754926183387,0.89015828,120160.0,120150.0,0.2447395]
[1754926186297,0.09531828,120160.0,120150.0,0.2447395]
[1754926186597,0.88991828,120160.0,120150.0,0.2447395]
[1754926186797,0.47624831,120160.0,120150.0,0.2447395]
[1754926186997,1.27084831,120160.0,120150.0,0.2447395]
[1754926187198,1.27080831,120160.0,120150.0,0.2447395]
[1754926187492,0.89102053,120160.0,120150.0,0.2447395]
[1754926187685,1.27195056,120160.0,120150.0,0.2447395]
[1754926188291,0.83819056,120160.0,120150.0,0.1615]
[1754926188497,1.63271056,120160.0,120150.0,0.1615]
[1754926188694,1.63271056,120160.0,120150.0,0.13953]
[1754926188891,0.83819056,120160.0,120150.0,0.13953]
[1754926189094,1.63267056,120160.0,120150.0,0.13953]
[1754926189301,0.83819056,120160.0,120150.0,0.13953]
[1754926189495,1.63263056,120160.0,120150.0,0.13953]
[1754926189895,1.25170053,120160.0,120150.0,0.13953]
[1754926190090,1.63263056,120160.0,120150.0,0.13953]
[1754926191098,1.63263056,120160.0,120150.0,0.10789]
[1754926192695,0.83819056,120160.0,120150.0,0.1911296]
[1754926192896,1.63235056,120160.0,120150.0,0.1911296]
[1754926193200,1.63235056,120160.0,120150.0,0.2447396]
[1754926193592,0.83819056,120160.0,120150.0,0.2447396]
[1754926193791,1.27151056,120160.0,120150.0,0.2447396]
[1754926193991,0.83819056,120160.0,120150.0,0.2447396]
[1754926194500,1.63227056,120160.0,120150.0,0.2447396]
[1754926194800,0.47739056,120160.0,120150.0,0.2447396]
[1754926194998,1.27139056,120160.0,120150.0,0.2447396]
[1754926195198,0.83819056,120160.0,120150.0,0.2447396]
[1754926195399,1.63219056,120160.0,120150.0,0.2447396]
[1754926195990,1.27139056,120160.0,120150.0,0.2447396]
[1754926196188,1.63219056,120160.0,120150.0,0.2447396]
[1754926196399,1.27131056,120160.0,120150.0,0.2447396]
[1754926196702,1.63211056,120160.0,120150.0,0.2447396]
[1754926197295,1.59111007,120160.0,120150.0,0.2447396]
[1754926197696,0.79719007,120160.0,120150.0,0.1615]
[1754926197896,1.59213232,120160.0,120150.0,0.1615]
[1754926198299,1.59213232,120160.0,120150.0,0.2447395]
[1754926198504,1.59209232,120160.0,120150.0,0.2447395]
[1754926200200,0.05660229,120160.0,120150.0,0.2447395]
[1754926200410,1.23117232,120160.0,120150.0,0.2447395]
[1754926200799,1.59197232,120160.0,120150.0,0.2447395]
[1754926201102,1.23117232,120160.0,120150.0,0.2447395]
[1754926201303,0.43753232,120160.0,120150.0,0.2447395]
[1754926201500,1.59185232,120160.0,120150.0,0.2447395]
[1754926201897,0.43753232,120160.0,120150.0,0.2447395]
[1754926202101,1.23109232,120160.0,120150.0,0.2447395]
[1754926202300,1.23105232,120160.0,120150.0,0.2447395]
[1754926202500,0.43753232,120160.0,120150.0,0.2447395]
[1754926202697,0.05660229,120160.0,120150.0,0.62566953]
[1754926202897,0.85004229,120160.0,120150.0,0.62566953]
[1754926203506,0.05660229,120160.0,120150.0,0.2447395]
[1754926203700,0.05660229,120160.0,120150.0,0.98646953]
[1754926203701,0.01437018,120160.0,120150.0,0.98646953]
[1754926204095,0.01437018,120160.0,120150.0,1.15291752]
[1754926204302,0.80769018,120160.0,120150.0,1.15291752]
[1754926204808,0.80765018,120160.0,120150.0,1.15291752]
[1754926205007,0.01437018,120160.0,120150.0,1.15291752]
[1754926205209,0.80765018,120160.0,120150.0,1.3474692]
[1754926205401,2.30561018,120160.0,120150.0,1.3474692]
[1754926206312,1.51237018,120160.0,120150.0,1.3474692]
[1754926206509,2.30557018,120160.0,120150.0,1.3474692]
[1754926206710,1.50437018,120160.0,120150.0,1.3474692]
[1754926206909,2.30053018,120160.0,120150.0,1.3474692]
[1754926207809,2.30045018,120160.0,120150.0,1.3474692]
[1754926208606,1.50737018,120160.0,120150.0,1.3474692]
[1754926208805,2.30041018,120160.0,120150.0,1.3474692]
[1754926210310,1.59060278,120160.0,120150.0,0.96653917]
[1754926210512,2.30021018,120160.0,120150.0,1.3474692]
[1754926211216,2.30021018,120160.0,120150.0,1.15291752]
[1754926211607,2.30021018,120160.0,120150.0,0.77198749]
[1754926211905,2.30021018,120160.0,120150.0,1.15291752]
[1754926213813,2.30021018,120160.0,120150.0,1.3474692]
[1754926215602,2.30021018,120160.0,120150.0,0.80009118]
[1754926215807,2.30021018,120160.0,120150.0,1.18102121]
[1754926216416,1.50737018,120160.0,120150.0,1.18102121]
[1754926216617,2.29965018,120160.0,120150.0,1.18102121]
[1754926217316,1.50737018,120160.0,120150.0,1.18102121]
[1754926217613,2.29957018,120160.0,120150.0,1.18102121]
[1754926217815,1.50737018,120160.0,120150.0,1.18102121]
[1754926218216,2.29953018,120160.0,120150.0,1.18102121]
[1754926218422,1.50737018,120160.0,120150.0,1.18102121]
[1754926218612,1.50737018,120160.0,120150.0,0.80009118]
[1754926218925,2.38272278,120160.0,120150.0,0.79983118]
[1754926219118,1.50737018,120160.0,120150.0,0.79983118]
[1754926219319,2.29945018,120160.0,120150.0,0.79983118]
[1754926219812,2.29941018,120160.0,120150.0,0.79983118]
[1754926220012,2.29941018,120160.0,120150.0,1.18076121]
[1754926220214,1.59174503,120160.0,120150.0,1.10539121]
[1754926220511,1.59174503,120160.0,120150.0,0.72446118]
[1754926220512,1.97267506,120160.0,120150.0,0.72446118]
[1754926220915,1.97267506,120160.0,120150.0,0.4965995]
[1754926221309,2.76459506,120160.0,120150.0,0.1108395]
[1754926222020,2.76455506,120160.0,120150.0,0.1108395]
[1754926222420,2.76451506,120160.0,120150.0,0.1357995]
[1754926223327,2.76455506,120160.0,120150.0,0.1357995]
[1754926225118,1.97267506,120160.0,120150.0,0.1357995]
[1754926225319,2.76431506,120160.0,120150.0,0.1108395]
[1754926226422,1.97267506,120160.0,120150.0,0.1108395]
[1754926226619,2.76431506,120160.0,120150.0,0.1357995]
[1754926226923,1.59174503,120160.0,120150.0,0.1357995]
[1754926227123,2.76423506,120160.0,120150.0,0.1677195]
[1754926227329,2.76423506,120160.0,120150.0,0.1994795]
[1754926227524,1.97267506,120160.0,120150.0,0.1994795]
[1754926227719,2.76415506,120160.0,120150.0,0.1902095]
[1754926228029,2.76415506,120160.0,120150.0,0.2435595]
[1754926228429,2.38322503,120160.0,120150.0,0.2435595]
[1754926228830,2.29999243,120160.0,120150.0,0.98509953]
[1754926229218,2.29991243,120160.0,120150.0,0.98509953]
[1754926230533,2.38314503,120160.0,120150.0,0.98509953]
[1754926231333,2.38428728,120160.0,120150.0,0.98509953]
[1754926232538,2.38404728,120160.0,120150.0,0.98509953]
[1754926233638,1.59288728,120160.0,120150.0,0.98509953]
[1754926233837,2.76489731,120160.0,120150.0,0.1108395]
[1754926234046,1.97381731,120160.0,120150.0,0.0276]
[1754926234239,3.14578734,120160.0,120150.0,0.1108395]
[1754926234536,1.64578734,120160.0,120150.0,0.1108395]
[1754926234728,0.47381731,120160.0,120150.0,0.1108395]
[1754926234930,0.09288728,120160.0,120150.0,0.1361695]
[1754926235226,0.09288728,120160.0,120150.0,0.1108395]
[1754926235429,0.47381731,120160.0,120150.0,0.1108395]
[1754926235639,1.26477731,120160.0,120150.0,0.1108395]
[1754926236029,0.88384728,120160.0,120150.0,0.1108395]
[1754926237139,0.09288728,120160.0,120150.0,0.1108395]
[1754926237340,0.88380728,120160.0,120150.0,0.1108395]
[1754926237543,0.09288728,120160.0,120150.0,0.1108395]
[1754926237845,1.26465731,120160.0,120150.0,0.1108395]
[1754926238744,0.47381731,120160.0,120150.0,0.1108395]
[1754926239240,1.26457731,120160.0,120150.0,0.1108395]
[1754926239436,1.26453731,120160.0,120150.0,0.1108395]
[1754926239635,0.47381731,120160.0,120150.0,0.1108395]
[1754926239841,1.26449731,120160.0,120150.0,0.1108395]
[1754926240144,0.47381731,120160.0,120150.0,0.1108395]
[1754926240643,1.21668959,120160.0,120150.0,0.0276]
[1754926240833,2.00732959,120160.0,120150.0,0.0276]
[1754926241542,1.21668959,120160.0,120150.0,0.0276]
[1754926241741,2.00724959,120160.0,120150.0,0.0276]
[1754926242249,1.21668959,120160.0,120150.0,0.0276]
[1754926242542,2.00720959,120160.0,120150.0,0.0276]
[1754926243445,2.17365759,120160.0,120150.0,0.0276]
[1754926243744,1.21668959,120160.0,120150.0,0.0276]
[1754926243940,2.00716959,120160.0,120150.0,0.0276]
[1754926245043,1.21668959,120160.0,120150.0,0.0276]
[1754926245248,2.00708959,120160.0,120150.0,0.0276]
[1754926245437,2.04118959,120160.0,120150.0,0.0276]
[1754926245638,1.25078959,120160.0,120150.0,0.0276]
[1754926245835,2.04114959,120160.0,120150.0,0.0276]
[1754926246943,2.04110959,120160.0,120150.0,0.0276]
[1754926247335,1.25078959,120160.0,120150.0,0.0276]
[1754926247540,2.04102959,120160.0,120150.0,0.0276]
[1754926248035,1.25078959,120160.0,120150.0,0.0276]
[1754926248240,0.86985956,120160.0,120150.0,0.0276]
[1754926249054,0.50905956,120160.0,120150.0,0.11666]
[1754926249745,1.29921956,120160.0,120150.0,0.11666]
[1754926250246,0.86985956,120160.0,120150.0,0.0276]
[1754926250647,1.65993956,120160.0,120150.0,0.0276]
[1754926251147,0.86985956,120160.0,120150.0,0.0276]
[1754926251347,0.47495956,120160.0,120150.0,0.09495]
[1754926251553,1.25720263,120160.0,120150.0,0.11666]
[1754926251747,1.26614181,120160.0,120150.0,0.11666]
[1754926252053,0.88517178,120160.0,120150.0,0.11666]
[1754926252746,0.01193918,120160.0,120150.0,0.5606965]
[1754926252953,0.09516878,120160.0,120150.0,0.94162653]
[1754926253250,0.88512878,120160.0,120150.0,0.94162653]
[1754926253453,0.80189918,120160.0,120150.0,0.94162653]
[1754926253952,0.09516878,120160.0,120150.0,0.5606965]
[1754926254152,0.88504878,120160.0,120150.0,0.5606965]
[1754926255245,0.09516878,120160.0,120150.0,0.47746]
[1754926255444,0.09516878,120160.0,120150.0,0.1998965]
[1754926255644,0.88496878,120160.0,120150.0,0.5606965]
[1754926256745,0.09516878,120160.0,120150.0,0.5606965]
[1754926257151,0.88488878,120160.0,120150.0,0.5606965]
[1754926257650,0.88484878,120160.0,120150.0,0.5606965]
[1754926257854,0.09516878,120160.0,120150.0,0.1998965]
[1754926258043,0.88480878,120160.0,120150.0,0.1998965]
[1754926258551,0.09516878,120160.0,120150.0,0.5606965]
[1754926258743,0.88476878,120160.0,120150.0,0.5606965]
[1754926258947,0.01193918,120160.0,120150.0,0.94162653]
[1754926259343,0.80153918,120160.0,120150.0,0.94162653]
[1754926259849,0.01193918,120160.0,120150.0,0.94162653]
[1754926260348,0.80145918,120160.0,120150.0,0.94162653]
[1754926260850,0.88468848,120160.0,120150.0,0.94162653]
[1754926261049,0.80145918,120160.0,120150.0,0.94162653]
[1754926261249,0.01308143,120160.0,120150.0,0.94162653]
[1754926261446,0.80256143,120160.0,120150.0,0.94162653]
[1754926263245,0.88579083,120160.0,120150.0,0.94162653]
[1754926263448,0.88579083,120160.0,120150.0,0.5606965]
[1754926263744,0.88579083,120160.0,120150.0,0.94162653]
[1754926263944,0.09631083,120160.0,120150.0,0.94162653]
[1754926264152,0.88563083,120160.0,120150.0,0.94162653]
[1754926264647,0.09631083,120160.0,120150.0,0.94162653]
[1754926264950,0.88563083,120160.0,120150.0,0.94162653]
[1754926265150,0.09631083,120160.0,120150.0,0.94162653]
[1754926265549,0.88559083,120160.0,120150.0,0.94162653]
[1754926265750,0.09631083,120160.0,120150.0,0.5613565]
[1754926266150,0.88551083,120160.0,120150.0,0.5613565]
[1754926266952,0.09631083,120160.0,120150.0,0.5613565]
[1754926267155,0.88547083,120160.0,120150.0,0.5613565]
[1754926267346,0.09631083,120160.0,120150.0,0.5613565]
[1754926267751,0.88543083,120160.0,120150.0,0.5613565]
[1754926268253,0.88543083,120160.0,120150.0,0.5420965]
[1754926268559,0.88543083,120160.0,120150.0,0.5626865]
[1754926268957,0.8753494,120160.0,120150.0,0.5626865]
[1754926269150,0.88617323,120160.0,120150.0,0.5626865]
[1754926269345,0.09705323,120160.0,120150.0,0.5626865]
[1754926270054,0.01382383,120160.0,120150.0,0.94361653]
[1754926270252,0.80282383,120160.0,120150.0,0.94361653]
[1754926270454,0.80282383,120160.0,120150.0,0.5626865]
[1754926270666,0.80282383,120160.0,120150.0,0.94361653]
[1754926270956,0.01382383,120160.0,120150.0,0.5626865]
[1754926271158,0.80278383,120160.0,120150.0,0.94361653]
[1754926271358,0.01382383,120160.0,120150.0,0.94361653]
[1754926271558,0.80274383,120160.0,120150.0,0.94361653]
[1754926272962,0.01382383,120160.0,120150.0,0.94361653]
[1754926273261,0.09705283,120160.0,120150.0,0.94361653]
[1754926273558,0.01382383,120160.0,120150.0,0.94361653]
[1754926273758,0.80266383,120160.0,120150.0,0.94361653]
[1754926274260,0.88589313,120160.0,120150.0,0.94361653]
[1754926274661,0.80266383,120160.0,120150.0,0.94361653]
[1754926275057,0.01382383,120160.0,120150.0,0.94361653]
[1754926275261,0.80266383,120160.0,120150.0,0.94361653]
[1754926276257,1.51382383,120160.0,120150.0,0.94361653]
[1754926276458,2.30254383,120160.0,120150.0,0.94361653]
[1754926276658,1.51382383,120160.0,120150.0,0.94361653]
[1754926276860,2.30254383,120160.0,120150.0,0.94361653]
[1754926278965,1.51382383,120160.0,120150.0,0.94361653]
[1754926279167,2.38573303,120160.0,120150.0,0.94361653]
[1754926279962,2.30250383,120160.0,120150.0,0.94361653]
[1754926280163,2.38573303,120160.0,120150.0,0.94361653]
[1754926280364,2.30250383,120160.0,120150.0,0.94361653]
[1754926282859,2.30250383,120160.0,120150.0,1.13816821]
[1754926284467,1.51382383,120160.0,120150.0,1.13816821]
[1754926285056,2.30214383,120160.0,120150.0,1.13816821]
[1754926285260,2.30214383,120160.0,120150.0,0.94361653]
[1754926285570,1.51382383,120160.0,120150.0,0.94361653]
[1754926285862,2.30214383,120160.0,120150.0,0.94361653]
[1754926286064,2.30210383,120160.0,120150.0,0.94361653]
[1754926286268,2.30210383,120160.0,120150.0,1.13821586]
[1754926288767,1.51382383,120160.0,120150.0,1.13821586]
[1754926289269,2.30198383,120160.0,120150.0,1.13821586]
[1754926289865,1.51382383,120160.0,120150.0,0.94361653]
[1754926290261,2.30194383,120160.0,120150.0,0.94361653]
[1754926290870,1.51382383,120160.0,120150.0,0.94361653]
[1754926291066,2.30194383,120160.0,120150.0,0.5626865]
[1754926291266,2.30194383,120160.0,120150.0,0.94361653]
[1754926291573,1.51382383,120160.0,120150.0,0.94361653]
[1754926291770,2.30190383,120160.0,120150.0,0.94361653]
[1754926292375,1.51382383,120160.0,120150.0,0.94361653]
[1754926292570,0.0001,120170.0,120150.0,1.65746315]
[1754926292870,1.15072,120190.0,120180.0,0.0832159]
[1754926293076,1.15072,120190.0,120180.0,1.27257593]
[1754926293277,0.06550536,120210.0,120200.0,0.083202]
[1754926293474,0.0831951,120210.0,120200.0,0.47679203]
[1754926293671,0.8711551,120210.0,120200.0,0.095862]
[1754926293872,0.8711551,120210.0,120200.0,0.083202]
[1754926294068,0.8711551,120210.0,120200.0,0.444002]
[1754926294270,0.66470603,120220.0,120200.0,0.6104018]
[1754926294575,0.25805272,120220.0,120210.0,0.0831951]
[1754926294777,1.42676275,120220.0,120210.0,0.0831951]
[1754926294964,0.63888275,120220.0,120210.0,0.0831951]
[1754926295172,0.47249535,120220.0,120210.0,0.0831951]
[1754926295568,0.87940532,120220.0,120210.0,0.0831951]
[1754926295877,1.26033535,120220.0,120210.0,0.0831951]
[1754926296176,0.94620953,120220.0,120210.0,0.0831951]
[1754926296376,1.32713956,120220.0,120210.0,0.0831951]
[1754926296577,0.53929956,120220.0,120210.0,0.0831951]
[1754926296772,1.32709956,120220.0,120210.0,0.0831951]
[1754926296971,1.33309956,120220.0,120210.0,0.0831951]
[1754926297174,0.16436953,120220.0,120210.0,0.0831951]
[1754926297372,0.86894093,120220.0,120210.0,0.1088851]
[1754926297670,0.86694093,120220.0,120210.0,0.2087851]
[1754926297872,0.87094093,120220.0,120210.0,0.2087851]
[1754926298078,0.95412913,120220.0,120210.0,0.2087851]
[1754926298269,1.33505916,120220.0,120210.0,0.2087851]
[1754926298576,0.54729916,120220.0,120210.0,0.2087851]
[1754926298772,0.95404913,120220.0,120210.0,0.2087851]
[1754926298979,1.69577916,120220.0,120210.0,0.2087851]
[1754926299277,1.33497916,120220.0,120210.0,0.2087851]
[1754926299578,0.16636913,120220.0,120210.0,0.2087851]
[1754926299773,1.33493916,120220.0,120210.0,0.2087851]
[1754926300471,0.54729916,120220.0,120210.0,0.2087851]
[1754926300669,1.33489916,120220.0,120210.0,0.2087851]
[1754926301077,0.54729916,120220.0,120210.0,0.2087851]
[1754926301275,0.95396913,120220.0,120210.0,0.2087851]
[1754926301780,1.33485916,120220.0,120210.0,0.2087851]
[1754926302081,0.08318093,120220.0,120210.0,0.3121451]
[1754926302281,0.08318093,120220.0,120210.0,1.05387513]
[1754926302577,0.07480421,120220.0,120210.0,1.05387513]
[1754926302875,0.86232421,120220.0,120210.0,1.05387513]
[1754926303275,0.07480421,120220.0,120210.0,1.05387513]
[1754926303572,0.86232421,120220.0,120210.0,1.05387513]
[1754926307577,0.07480421,120220.0,120210.0,1.05387513]
[1754926308280,0.86208421,120220.0,120210.0,1.05387513]
[1754926309681,0.07480421,120220.0,120210.0,1.05387513]
[1754926309880,0.15799241,120220.0,120210.0,0.6729451]
[1754926310077,0.45573424,120220.0,120210.0,0.6729451]
[1754926310276,1.32608244,120220.0,120210.0,0.6209451]
[1754926310482,0.53892244,120220.0,120210.0,0.6209451]
[1754926310677,1.32608244,120220.0,120210.0,0.6536851]
[1754926310879,0.07480421,120220.0,120210.0,0.6729451]
[1754926311080,0.86196421,120220.0,120210.0,0.6729451]
[1754926311476,0.07480421,120220.0,120210.0,0.6729451]
[1754926311876,0.86192421,120220.0,120210.0,0.6729451]
[1754926312278,0.15799241,120220.0,120210.0,0.5695851]
[1754926312474,0.53892244,120220.0,120210.0,0.2087852]
[1754926312675,0.53892244,120220.0,120210.0,0.0999]
[1754926312877,1.68680244,120220.0,120210.0,0.0999]
[1754926313281,1.68680244,120220.0,120210.0,0.1830952]
[1754926313477,1.32600244,120220.0,120210.0,0.1830952]
[1754926313682,1.32600244,120220.0,120210.0,0.2087852]
[1754926313885,0.94507241,120220.0,120210.0,0.2087852]
[1754926314185,1.32600244,120220.0,120210.0,0.2087852]
[1754926314380,0.94507241,120220.0,120210.0,0.2087852]
[1754926314780,1.32600244,120220.0,120210.0,0.2087852]
[1754926315188,0.94507241,120220.0,120210.0,0.2087852]
[1754926315375,0.53892244,120220.0,120210.0,0.2087852]
[1754926315581,1.32596244,120220.0,120210.0,0.2087852]
[1754926316190,0.45573424,120220.0,120210.0,0.2087852]
[1754926316376,1.32596274,120220.0,120210.0,0.2087852]
[1754926317176,1.24277424,120220.0,120210.0,0.2087852]
[1754926317585,0.86184421,120220.0,120210.0,0.3121452]
[1754926317786,0.86184421,120220.0,120210.0,0.6729452]
[1754926318590,0.86184421,120220.0,120210.0,0.3121452]
[1754926319184,0.86184421,120220.0,120210.0,0.6729452]
[1754926319684,0.94503281,120220.0,120210.0,0.3121452]
[1754926319892,0.94503281,120220.0,120210.0,0.6729452]
[1754926320591,0.86176421,120220.0,120210.0,1.05387523]
[1754926320980,0.07480421,120220.0,120210.0,1.05387523]
[1754926321181,0.86176421,120220.0,120210.0,1.05387523]
[1754926321985,0.86176421,120220.0,120210.0,0.6729452]
[1754926322291,0.86172421,120220.0,120210.0,0.6729452]
[1754926323201,0.86172421,120220.0,120210.0,1.05387523]
[1754926323590,0.07480421,120220.0,120210.0,1.05387523]
[1754926324101,0.86168421,120220.0,120210.0,1.05387523]
[1754926324606,0.86168421,120220.0,120210.0,1.06220719]
[1754926324888,0.07480421,120220.0,120210.0,1.06220719]
[1754926325088,0.86168421,120220.0,120210.0,0.68127716]
[1754926325295,0.07480421,120220.0,120210.0,1.06220719]
[1754926325492,0.07480421,120220.0,120210.0,1.05387523]
[1754926325696,0.86164421,120220.0,120210.0,1.05387523]
[1754926325883,0.07480421,120220.0,120210.0,1.05387523]
[1754926326087,0.07480421,120220.0,120210.0,0.6729452]
[1754926326288,0.15799301,120220.0,120210.0,0.6729452]
[1754926326594,0.94483301,120220.0,120210.0,0.6729452]
[1754926326794,0.86164421,120220.0,120210.0,1.05387523]
[1754926328594,0.86160421,120220.0,120210.0,1.05387523]
[1754926329091,0.07480421,120220.0,120210.0,1.05387523]
[1754926329394,0.86160421,120220.0,120210.0,1.05387523]
[1754926329798,0.07480421,120220.0,120210.0,1.05387523]
[1754926330097,0.2495159,120250.0,120240.0,0.0831748]
[1754926330300,0.2495159,120250.0,120240.0,0.95307483]
[1754926330598,0.17447912,120250.0,120240.0,0.5721448]
[1754926330793,0.96127912,120250.0,120240.0,0.4992648]
[1754926331097,0.96127912,120250.0,120240.0,0.5721448]
[1754926331300,0.2495931,120260.0,120250.0,0.0831679]
[1754926331496,1.41722313,120260.0,120250.0,0.1088879]